Cogmind - Beta 14 @@@ ROGUE MODE // 2024.08.08 @ 23:18:43 Player: Olafz Result: Destroyed by H-71 Marshal with Heavy Mass Driver Performance ------------- Evolutions (5) 2500 Regions Visited (7) 1400 Robots Destroyed (0) 0 Value Destroyed (0) 0 Prototype IDs (1) 20 Alien Tech Used (0) 0 Bonus (1987) 1987 TOTAL SCORE: 5907 Bonus ------- Pacifist 1987 Cogmind --------- Core Integrity 0/1000 Matter 15/300 Energy 98/100 System Corruption 1% Temperature Cool (0) Movement Core (50) Location -5/Factory Parts ------- > --- POWER (1) -------- (None) > --- PROPULSION (4) --- (None) > --- UTILITY (10) ----- Enhanced Optical Array Improved Terrain Scan Processor > --- WEAPON (2) ------- (None) > --- INVENTORY (5) ---- Advanced Signal Interpreter Advanced Signal Interpreter Advanced Terrain Scanner ECM Suite Peak State ------------ > --- POWER ------------ (None) > --- PROPULSION ------- Xenon Bombardment Thruster Xenon Bombardment Thruster > --- UTILITY ---------- Advanced Sensor Array Signal Interpreter Improved Signal Interpreter Improved Terrain Scan Processor System Shield System Shield > --- WEAPON ----------- Scythe > --- INVENTORY -------- Xenon Bombardment Thruster Enhanced Optical Array Advanced Signal Interpreter Advanced Signal Interpreter Improved Terrain Scanner [Rating: 31] Favorites ----------- Power None Propulsion Xenon Bombardment Thruster Flight Unit Xenon Bombardment Thruster Utility System Shield Device Advanced Sensor Array Processor Improved Terrain Scan Processor Hackware System Shield Weapon Scythe Slashing Weapon Scythe Build | -11 -10 -9 -9 -8 -7 -6 -5 ------- Run | Yrd Mat Mat Min Mat Fac Fac Fac Slots Evolved 10 | . . 2 . 2 2 2 2 Power . | . . . . . . . . Propulsion 2 | . . . . . 2 . . Utility 8 | . . 2 . 2 . 2 2 Weapon . | . . . . . . . . Parts Attached 19 | . . 3 1 6 3 4 2 Power . | . . . . . . . . Engine . | . . . . . . . . Core . | . . . . . . . . Reactor . | . . . . . . . . Propulsion 9 | . . 2 . 1 2 3 1 Treads . | . . . . . . . . Leg . | . . . . . . . . Wheel . | . . . . . . . . Hover . | . . . . . . . . Flight 9 | . . 2 . 1 2 3 1 Utility 9 | . . 1 1 4 1 1 1 Device 2 | . . 1 . . . 1 . Storage . | . . . . . . . . Processor 4 | . . . 1 2 . . 1 Hackware 3 | . . . . 2 1 . . Protection . | . . . . . . . . Artifact . | . . . . . . . . Weapon 1 | . . . . 1 . . . Energy Gun . | . . . . . . . . Energy Cannon . | . . . . . . . . Ballistic Gun . | . . . . . . . . Ballistic Cannon . | . . . . . . . . Launcher . | . . . . . . . . Special Weapon . | . . . . . . . . Impact Weapon . | . . . . . . . . Slashing Weapon 1 | . . . . 1 . . . Piercing Weapon . | . . . . . . . . Special Melee Weapon . | . . . . . . . . Unidentified Prototypes 1 | . . . . . . . 1 Parts Lost 17 | . . . 1 2 3 7 4 Power . | . . . . . . . . Propulsion 9 | . . . 1 1 2 3 2 Utility 7 | . . . . 1 1 3 2 Weapon 1 | . . . . . . 1 . Highest Loss Streak 7 | . . . 1 2 2 7 2 To Critical Strikes . | . . . . . . . . Average Slot Usage (%) 40 | . . 18 33 55 62 52 22 Flight 8 | . . 11 16 11 14 10 1 Device 4 | . . 7 11 9 2 4 . Processor 17 | . . . 5 24 23 20 21 Hackware 6 | . . . . 7 14 11 . Slashing Weapon 3 | . . . . 4 7 5 . Peak Build Rating 31 | . . 7 8 17 29 31 18 Average Rating 17 | . . 3 6 14 22 26 14 On Entrance 8 | . . . 7 6 17 21 14 Naked Turns 54 | . 36 18 . . . . . Heaviest Build 3 | . . 1 1 3 3 3 . Greatest Support 16 | 3 3 8 8 8 16 12 6 Greatest Overweight (x) . | . . . . . . . . Average Overweight (x) . | . . . . . . . . Largest Inventory Capacity 5 | 5 5 5 5 5 5 5 5 Average Capacity 5 | 5 5 5 5 5 5 5 5 Most Carried 5 | . . 1 1 1 3 5 4 Average Carried 2 | . . . 1 1 2 4 3 Final Capacity 5 | 5 5 5 5 5 5 5 5 Final Carried 4 | . . 1 1 1 3 4 4 Class Distribution -------------------- 55% | Mutant 41% | Hacker-Mutant Dominant Class ---------------- Mutant | -10/Materials Mutant | -9/Materials Sprinter | -9/Mines Mutant | -8/Materials Hacker-Mutant | -7/Factory Hacker-Mutant | -6/Factory Mutant | -5/Factory Resources | -11 -10 -9 -9 -8 -7 -6 -5 ----------- Run | Yrd Mat Mat Min Mat Fac Fac Fac Matter Collected 20 | . 20 . . . . . . Remotely . | . . . . . . . . Salvage Created . | . . . . . . . . Parts . | . . . . . . . . Haulers Intercepted . | . . . . . . . . Recyclers Shooed . | . . . . . . . . Parts Field Recycled . | . . . . . . . . Retrieved Matter . | . . . . . . . . Parts Self-Destructed . | . . . . . . . . Prevented . | . . . . . . . . Kills | -11 -10 -9 -9 -8 -7 -6 -5 ------- Run | Yrd Mat Mat Min Mat Fac Fac Fac Combat Hostiles Destroyed . | . . . . . . . . Classes Destroyed . | . . . . . . . . Best Kill Streak . | . . . . . . . . Combat Bots Only . | . . . . . . . . Max Kills in Single Turn . | . . . . . . . . Gunslinging . | . . . . . . . . Exploded . | . . . . . . . . Melee . | . . . . . . . . Uniques/NPCs Destroyed . | . . . . . . . . Combat | -11 -10 -9 -9 -8 -7 -6 -5 -------- Run | Yrd Mat Mat Min Mat Fac Fac Fac Hostile Shots Fired 400 | . 27 14 13 7 57 147 135 Missed 215 | . 15 6 5 3 33 84 69 Damage Taken 2721 | . 194 110 71 62 332 810 1142 Core 2115 | . 194 56 55 33 216 559 1002 Absorbed by Shields . | . . . . . . . . Core Remaining (%) 65 | 100 22 . 72 94 69 34 . Volleys Fired . | . . . . . . . . Largest . | . . . . . . . . Hottest . | . . . . . . . . Shots Fired . | . . . . . . . . Gun . | . . . . . . . . Cannon . | . . . . . . . . Launcher . | . . . . . . . . Special . | . . . . . . . . Kinetic . | . . . . . . . . Thermal . | . . . . . . . . Explosive . | . . . . . . . . Electromagnetic . | . . . . . . . . Robot Hit Streak . | . . . . . . . . Robot Miss Streak . | . . . . . . . . Penetration Max . | . . . . . . . . Secondary Targets . | . . . . . . . . Shots Hit Robots . | . . . . . . . . Core Hits . | . . . . . . . . Critical Kills . | . . . . . . . . Critical Parts Destroyed . | . . . . . . . . Critical Strikes . | . . . . . . . . Melee Attacks 1 | . . . . 1 . . . Impact . | . . . . . . . . Slashing 1 | . . . . 1 . . . Piercing . | . . . . . . . . Sneak Attacks . | . . . . . . . . Combat Hostiles . | . . . . . . . . Follow-up Attacks . | . . . . . . . . Damage Inflicted . | . . . . . . . . Guns . | . . . . . . . . Cannons . | . . . . . . . . Explosions . | . . . . . . . . Melee . | . . . . . . . . Ramming . | . . . . . . . . Kinetic . | . . . . . . . . Thermal . | . . . . . . . . Explosive . | . . . . . . . . Electromagnetic . | . . . . . . . . Impact . | . . . . . . . . Slashing . | . . . . . . . . Piercing . | . . . . . . . . Highest Corruption 2 | . . . . . . 2 1 Average Corruption 1 | . . . . . . 1 1 Corruption Purged . | . . . . . . . . Corruption Blocked . | . . . . . . . . Effects 1 | . . . . . . 1 . Heat Flow Errors 1 | . . . . . . 1 . Overload Shots . | . . . . . . . . Overflow Damage . | . . . . . . . . Projectiles . | . . . . . . . . Explosions . | . . . . . . . . Melee . | . . . . . . . . Knockbacks . | . . . . . . . . Impact . | . . . . . . . . Kinetic . | . . . . . . . . Secondary . | . . . . . . . . Self-Inflicted Damage . | . . . . . . . . Shots . | . . . . . . . . Rammed . | . . . . . . . . Targets Rammed . | . . . . . . . . Kicked . | . . . . . . . . Crushed . | . . . . . . . . Highest Temperature 72 | . . . . . . 72 . Average Temperature 39 | . . . . . . 39 . Received Heat Transfer 333 | . 39 42 12 36 9 51 144 Siege Activations . | . . . . . . . . Robots Corrupted . | . . . . . . . . Combat Hostiles . | . . . . . . . . Parts Fried . | . . . . . . . . Impact Corruptions . | . . . . . . . . Robots Melted . | . . . . . . . . Combat Hostiles . | . . . . . . . . Parts Melted . | . . . . . . . . Heat Transferred . | . . . . . . . . Parts Sabotaged . | . . . . . . . . Parts Stolen . | . . . . . . . . Parts Stripped . | . . . . . . . . Power Chain Reactions . | . . . . . . . . Alert | -11 -10 -9 -9 -8 -7 -6 -5 ------- Run | Yrd Mat Mat Min Mat Fac Fac Fac Peak Influence 540 | . 15 154 110 113 237 420 540 Initial 205 | . . 5 60 42 58 115 205 Average 172 | . 2 74 70 61 129 197 304 Maximum Alert Level 2 | . . . . . 1 2 2 Low Security (%) 57 | 100 100 100 100 100 71 56 . Level 1 38 | . . . . . 28 43 83 Level 2 4 | . . . . . . . 16 Level 3 . | . . . . . . . . Level 4 . | . . . . . . . . Level 5 . | . . . . . . . . High Security . | . . . . . . . . Max Security . | . . . . . . . . Squads Dispatched 6 | . . 2 . 2 1 . 1 Investigation 1 | . . . . 1 . . . Extermination . | . . . . . . . . Reinforcement 5 | . . 2 . 1 1 . 1 Assault . | . . . . . . . . Garrison . | . . . . . . . . Intercept . | . . . . . . . . Searches Triggered . | . . . . . . . . Construction Impeded . | . . . . . . . . Haulers Reinforced . | . . . . . . . . Active Scanning Responses . | . . . . . . . . Cargo Convoy Interrupts . | . . . . . . . . Stealth | -11 -10 -9 -9 -8 -7 -6 -5 --------- Run | Yrd Mat Mat Min Mat Fac Fac Fac Distress Signals 6 | . . 1 . 1 2 1 1 Communications Jammed . | . . . . . . . . Distress Signals . | . . . . . . . . Times Spotted 108 | . 9 14 9 8 15 22 31 Peak Tracking Total 13 | . 9 10 8 7 10 12 13 Tactical Retreats 21 | . . 1 1 2 3 8 6 Traps | -11 -10 -9 -9 -8 -7 -6 -5 ------- Run | Yrd Mat Mat Min Mat Fac Fac Fac Traps Triggered 2 | . 1 . . 1 . . . Indirectly . | . . . . . . . . Trap Hack Attempts . | . . . . . . . . Triggered . | . . . . . . . . Disarmed . | . . . . . . . . Reprogrammed . | . . . . . . . . Reused . | . . . . . . . . Traps Extracted . | . . . . . . . . Installed . | . . . . . . . . Triggered . | . . . . . . . . Machines | -11 -10 -9 -9 -8 -7 -6 -5 ---------- Run | Yrd Mat Mat Min Mat Fac Fac Fac Machines Disabled . | . . . . . . . . Max in Single Turn . | . . . . . . . . Machines Repaired . | . . . . . . . . Machines Dismantled . | . . . . . . . . Machines Sabotaged . | . . . . . . . . Overloaded Fab Kills . | . . . . . . . . Hacking | -11 -10 -9 -9 -8 -7 -6 -5 --------- Run | Yrd Mat Mat Min Mat Fac Fac Fac Machines Accessed 2 | . . 1 . . 1 . . Terminals 2 | . . 1 . . 1 . . Fabricators . | . . . . . . . . Repair Stations . | . . . . . . . . Recycling Units . | . . . . . . . . Scanalyzers . | . . . . . . . . Garrison Access . | . . . . . . . . Total Hacks 3 | . . 2 . . 1 . . Successful 2 | . . 1 . . 1 . . Failed 1 | . . 1 . . . . . Catastrophic . | . . . . . . . . Database Lockouts . | . . . . . . . . Manual 2 | . . 1 . . 1 . . Terminals 3 | . . 2 . . 1 . . Fabricators . | . . . . . . . . Repair Stations . | . . . . . . . . Recycling Units . | . . . . . . . . Scanalyzers . | . . . . . . . . Garrison Access . | . . . . . . . . Terminal Hacks . | . . . . . . . . Fabricator Hacks . | . . . . . . . . Repair Station Hacks . | . . . . . . . . Recycling Unit Hacks . | . . . . . . . . Scanalyzer . | . . . . . . . . Garrison Access Hacks . | . . . . . . . . Unauthorized Hacks 2 | . . 1 . . 1 . . Terminals 2 | . . 1 . . 1 . . Botnet 2 | . . 1 . . 1 . . Fabricators . | . . . . . . . . Repair Stations . | . . . . . . . . Recycling Units . | . . . . . . . . Scanalyzers . | . . . . . . . . Garrison Access . | . . . . . . . . Data Cores Recovered . | . . . . . . . . Used . | . . . . . . . . Hacking Detections 2 | . . 1 . . 1 . . Full Trace Events . | . . . . . . . . Feedback Events . | . . . . . . . . Feedback Blocked . | . . . . . . . . Robot Schematics Acquired . | . . . . . . . . Robots Built . | . . . . . . . . Authchips . | . . . . . . . . Time . | . . . . . . . . Total Robot Build Rating . | . . . . . . . . Part Schematics Acquired . | . . . . . . . . Parts Built . | . . . . . . . . Authchips . | . . . . . . . . Time . | . . . . . . . . Total Part Build Rating . | . . . . . . . . Parts Repaired . | . . . . . . . . Time . | . . . . . . . . Parts Recycled . | . . . . . . . . Recycled Matter . | . . . . . . . . Retrieved Matter . | . . . . . . . . Retrieved Components . | . . . . . . . . Parts Scanalyzed . | . . . . . . . . Part Schematics Acquired . | . . . . . . . . Parts Damaged . | . . . . . . . . Bothacking | -11 -10 -9 -9 -8 -7 -6 -5 ------------ Run | Yrd Mat Mat Min Mat Fac Fac Fac Used RIF Installer . | . . . . . . . . Robots Hacked . | . . . . . . . . Non-combat . | . . . . . . . . Combat . | . . . . . . . . Robot Hacks Applied . | . . . . . . . . Relay Couplers Released . | . . . . . . . . Fabnet Peak Effective % . | . . . . . . . . Robots Rewired . | . . . . . . . . Allies Hacked . | . . . . . . . . Hacks Repelled . | . . . . . . . . Allies | -11 -10 -9 -9 -8 -7 -6 -5 -------- Run | Yrd Mat Mat Min Mat Fac Fac Fac Total Allies . | . . . . . . . . Largest Group . | . . . . . . . . Highest-Rated Group . | . . . . . . . . Highest-Rated Ally . | . . . . . . . . Total Orders . | . . . . . . . . Ally Attacks . | . . . . . . . . Total Damage . | . . . . . . . . Kills . | . . . . . . . . Allies Corrupted . | . . . . . . . . Allies Melted . | . . . . . . . . Intel | -11 -10 -9 -9 -8 -7 -6 -5 ------- Run | Yrd Mat Mat Min Mat Fac Fac Fac Robot Analysis Total . | . . . . . . . . Derelict Logs Recovered 1 | . . . 1 . . . . Drone Launches . | . . . . . . . . Drone Recoveries . | . . . . . . . . Exploration | -11 -10 -9 -9 -8 -7 -6 -5 ------------- Run | Yrd Mat Mat Min Mat Fac Fac Fac Turns Passed 901 | 9 36 92 35 88 128 301 212 Spaces Moved 2109 | 18 71 230 100 205 302 749 434 Core 546 | 18 71 35 . . 11 62 349 Treads . | . . . . . . . . Legs . | . . . . . . . . Wheels . | . . . . . . . . Hover . | . . . . . . . . Flight 1563 | . . 195 100 205 291 687 85 Fastest Speed 32 | 50 50 32 32 34 34 37 40 Average Speed 40 | 50 50 36 33 37 40 38 48 Slowest Speed 50 | 50 50 50 35 40 50 50 50 Overloaded Moves . | . . . . . . . . Propulsion Burnouts . | . . . . . . . . Robots Hopped 28 | . . 2 1 4 6 15 . Cave-ins Triggered . | . . . . . . . . Exploration Rate (%) 26 | 4 32 35 42 25 17 31 25 Regions Visited 7 Branch Regions 1 Pre-discovered Areas 1 | . . . 1 . . . . Known Exits Taken 4 | . . . 1 1 1 1 . Unknown Exits Taken 3 | 1 1 1 . . . . . Scrap Searched 1 | . . . 1 . . . . Spaces Dug 1 | . . . . 1 . . . Terrain Destroyed 1 | . . . . 1 . . . Melee 1 | . . . . 1 . . . Projectile . | . . . . . . . . AOE . | . . . . . . . . Terrain Rammed . | . . . . . . . . Walls Destroyed . | . . . . . . . . Machines Disabled . | . . . . . . . . Actions | -11 -10 -9 -9 -8 -7 -6 -5 --------- Run | Yrd Mat Mat Min Mat Fac Fac Fac Total 2110 | 17 70 233 99 207 300 747 437 Wait 6 | . . 2 . . . 4 . Move 2051 | 17 70 225 97 197 289 722 434 Hop 23 | . . 2 1 3 6 11 . Pick Up 9 | . . 1 . . 2 5 1 Fast Attach 15 | . . 3 1 6 3 1 1 Attach 4 | . . . . . . 3 1 Detach . | . . . . . . . . Swap . | . . . . . . . . Drop 1 | . . . . . . 1 . Fire . | . . . . . . . . Melee 1 | . . . . 1 . . . Ram . | . . . . . . . . Kick . | . . . . . . . . Crush . | . . . . . . . . Escape Stasis . | . . . . . . . . Rewire . | . . . . . . . . Trap . | . . . . . . . . Miscellaneous . | . . . . . . . . Route ------- -11/Scrapyard -10/Materials (discovered 2 exits: *Mat / [*Min]) -9/Materials -9/Mines -8/Materials -7/Factory -6/Factory (discovered 3 exits: *Fac / *Low / [*Ext]) -5/Factory History --------- Turn | Location | Event 3 | -11/Scrapyard | Discovered new exit (range 15) 10 | -11/Scrapyard | Entered Materials 23 | -10/Materials | Discovered new exit (range 11) 33 | -10/Materials | Core integrity fell below 50% 41 | -10/Materials | Discovered new exit (range 11) 46 | -10/Materials | Entered another Materials area 46 | -9/Materials | Evolved 2 slots: Utility x2 129 | -9/Materials | Discovered new exit (range 8) 138 | -9/Materials | Entered Mines 146 | -9/Mines | Found a hidden stash of uninstalled traps 148 | -9/Mines | Learned location of Zion (-6) 171 | -9/Mines | Discovered new exit (range 7) 173 | -9/Mines | Identified exit to Materials 173 | -9/Mines | Entered Materials 173 | -8/Materials | Evolved 2 slots: Utility x2 260 | -8/Materials | Discovered new exit (range 3) 261 | -8/Materials | Identified exit to Factory 261 | -8/Materials | Entered Factory 261 | -7/Factory | Evolved 2 slots: Propulsion x2 387 | -7/Factory | Discovered new exit (range 6) 389 | -7/Factory | Identified exit to Factory 389 | -7/Factory | Entered another Factory area 389 | -6/Factory | Evolved 2 slots: Utility x2 517 | -6/Factory | Discovered new exit (range 11) 520 | -6/Factory | Identified exit to Lower Caves 573 | -6/Factory | Build established: Hacker-Mutant 573 | -6/Factory | Discovered new exit (range 16) 658 | -6/Factory | Core integrity fell below 50% 684 | -6/Factory | Discovered new exit (range 15) 687 | -6/Factory | Lost 7 parts (3n3u1w) 690 | -6/Factory | Identified exit to Factory 690 | -6/Factory | Entered another Factory area 690 | -5/Factory | Evolved 2 slots: Utility x2 797 | -5/Factory | Spotted B-75 Beast 844 | -5/Factory | Core integrity fell below 50% 882 | -5/Factory | Core integrity fell below 20% 902 | -5/Factory | Destroyed by H-71 Marshal with Heavy Mass Driver Last Messages --------------- O-24 Administrator: "IFF HANDSHAKE FAILED. SECURING TERMINAL." Penetrated by Slug. Acquired Prototype Flight Unit. Identified Imp. Cesium-ion Thruster. Faulty integration damages Signal Interpreter (-1). K-01 Serf cleans the Fusion Modulator. K-01 Serf cleans the Power Conduit. K-01 Serf cleans the Fusion Modulator. K-01 Serf cleans the Power Conduit. K-01 Serf collects debris. K-01 Serf cleans the Power Conduit. Faulty Imp. Cesium-ion Thruster destroyed. Penetrated by Slug. P-70 Sage resets G-50 Soldier, system corruption cleaned. Signal Interpreter destroyed. Slug penetrates Wall. Penetrated by Slug. Imp. Signal Interpreter destroyed. ALERT: Suspicious intruders detected, dispatching Cutter reinforcements to area. Map ----- +----------------------------------------------------+ | ?????????????????????????????????????????????????? | | ?????????????????????????????????????????????????? | | ?????????????????????????????????????????????????? | | ?????????????????????????????????????????????????? | | ?????????????????????????????????????????????????? | | ?????????????????????????????????????????????????? | | ?????????????????????????????????????????????????? | | ?????????????????????????????????????????????????? | | ?????????????????????????????????????????????????? | | ?????????????????????????????????????????????????? | | ?????????????????????????????????????????????????? | | ?????????????????????????????????????????????????? | | ?????????????????????????????????????????????????? | | ?????????????????????????????????????????????????? | | ?????????????????????????????????????????????????? | | ?????????????????????????????????????????????????? | | ?????????????????????????????????????????????????? | | ?????????????????????????????????????????????????? | | ??????????????????#??????????????????????????????? | | ??????????????????# ?????????????????????????????? | | ????????????????### ##???????????????????????????? | | #???????????????# ! ######?????????????????????? | | #??????????????## ###???????????????????? | | #??????????????? H % ????????????????????? | | #??????????????????? #?###########?????????? | | ###????????????????????# @ # #?????????? | | # ????????????????????# # #?????????? | | # #???##########??##???# + #?????????? | | # #???#! #???# # ] #?????????? | | # #???# """" """" #???# # #?????????? | | # #???# """" """" #???# #? #?????????? | | # ##### """" """" #???# #? #?????????? | | # """" """" #???# #?? #?????????? | | # """" """" #???# #?? #?????????? | | / """" """" #???# #??? [#?????????? | | # """" """" #???# s#??? #?????????? | | # #???# R#???? #?????????? | | ##"##"# #???# s #???? #?????????? | | # #???# #?????#######?????????? | | # #?###s ###???????????????????? | | ###########+#### #???????????????????? | | #???????# #???????????????????? | | #???????# "" ?????????? | | !! #???????# T ""???????? | | !! #???????# ???????? | | #???????# #######+## ??????? | | #???????# ## * #???????????????????? | | #???????# ##########???????????????????? | | """ #???????# #????????????????????????????? | | """ #???????+ #????????????????????????????? | +----------------------------------------------------+ Best States ------------- Heat Dissipation 40 Energy Generation 5 Energy Capacity 100 Matter Stores 120 Matter Capacity 300 Sight Range 22 Robot Scan Range 16 Terrain Scan Range 16 Terrain Scan Density 110 Evasion (%) 63 Offensive Hacking 10 Defensive Hacking 20 Item Schematics ----------------- None Robot Schematics ------------------ None Fabricated ------------ Nothing Alien Tech Used ----------------- None Achievements -------------- None Challenges ------------ None Game ------ Seed ElectrostormHeatLance Manual? 0 Play Time 00:19:33 Cumulative 182.3 hours Start 2024.08.08 @ 23:02:19 End 2024.08.08 @ 23:18:43 Sessions 1 Manual Loads 0 Difficulty Rogue Special Mode None Game No. 299 Rogue 297 Adventurer 2 Explorer 0 Win Type - Total 6 Types 5/0/0/1/0/0/0/0/0 Lore% 69 Gallery% 62 Achievement% 53 Wizard Run 0 Options --------- Layout 0 ASCII 0 Keyboard 1 Movement Numpad Keybinds 1 Fullscreen 2 Font 18/SmallcapsGlow Map View 76x50 Zoom Use 0% Tactical HUD 1 Map Filters NONE Filters NONE Steam 1 RUN: dbbba161-c91d-4abe-947f-6eaabae72e38